bitfinex/quotes_BTCUSD_20241222
["timestamp","ask_amount","ask_price","bid_price","bid_amount"]
[1734855027049,0.207409,96428.0,96420.0,0.0011714]
[1734855027289,0.023,96427.0,96421.0,0.1231]
[1734855027713,0.023,96425.0,96421.0,0.1231]
[1734855027924,0.023,96427.0,96421.0,0.1231]
[1734855028156,0.023,96423.0,96421.0,0.1231]
[1734855028383,0.023,96427.0,96421.0,0.1231]
[1734855029064,0.023,96425.0,96421.0,0.1231]
[1734855029497,0.023,96428.0,96421.0,0.1231]
[1734855029718,0.20741,96427.0,96421.0,0.1231]
[1734855030030,0.023,96426.0,96421.0,0.1231]
[1734855030859,0.023,96424.0,96421.0,0.1231]
[1734855031098,0.2,96445.0,96421.0,0.1231]
[1734855031099,0.18521803,96453.0,96422.0,0.3272084]
[1734855031306,0.207357,96452.0,96438.0,0.207385]
[1734855031521,0.18521803,96453.0,96440.0,0.207382]
[1734855031746,0.18521803,96453.0,96441.0,0.0472]
[1734855032209,0.18521803,96453.0,96443.0,0.0759]
[1734855032437,0.09260901,96463.0,96445.0,0.2259]
[1734855032692,0.09260901,96463.0,96445.0,0.3272084]
[1734855033979,8.57e-05,96466.0,96445.0,0.3272084]
[1734855034363,8.57e-05,96466.0,96445.0,0.3352084]
[1734855034636,0.2074207,96462.0,96445.0,0.3352084]
[1734855034877,8.57e-05,96462.0,96445.0,0.3352084]
[1734855036568,8.57e-05,96462.0,96445.0,0.3272084]
[1734855037057,8.57e-05,96462.0,96445.0,0.3352084]
[1734855037301,0.207341,96460.0,96445.0,0.3272084]
[1734855037541,0.207341,96460.0,96445.0,0.0839]
[1734855038049,0.207342,96459.0,96445.0,0.0839]
[1734855040141,0.207354,96454.0,96445.0,0.0839]
[1734855040350,0.023,96447.0,96445.0,0.008]
[1734855041427,0.023,96444.0,96439.0,0.0761]
[1734855041849,0.023,96453.0,96439.0,0.0761]
[1734855042057,0.023,96453.0,96440.0,0.0010368]
[1734855042265,0.023,96453.0,96439.0,0.07713681]
[1734855043311,0.023,96453.0,96445.0,0.008]
[1734855043556,0.023,96453.0,96439.0,0.07713681]
[1734855043922,0.023,96453.0,96442.0,0.207378]
[1734855044181,0.023,96453.0,96442.0,0.414756]
[1734855044600,0.023,96453.0,96445.0,0.008]
[1734855044989,0.023,96453.0,96442.0,0.414756]
[1734855046321,0.023,96453.0,96442.0,0.43330633]
[1734855047791,0.230355,96453.0,96442.0,0.008]
[1734855048838,0.023,96447.0,96442.0,0.008]
[1734855050169,0.207372,96445.0,96442.0,0.008]
[1734855050378,0.023,96447.0,96442.0,0.008]
[1734855050585,0.023,96451.0,96442.0,0.008]
[1734855050821,0.023,96451.0,96443.0,0.207376]
[1734855051042,0.023,96451.0,96442.0,0.008]
[1734855051242,0.023,96451.0,96439.0,0.490867]
[1734855051658,0.023,96451.0,96440.0,0.207382]
[1734855053849,0.023,96451.0,96440.0,0.214382]
[1734855054060,0.023,96451.0,96441.0,0.207379]
[1734855054581,0.023,96453.0,96440.0,0.007]
[1734855055473,0.023,96453.0,96441.0,0.20738]
[1734855056204,0.023,96453.0,96441.0,0.007]
[1734855056909,0.023,96453.0,96440.0,0.0001714]
[1734855057122,0.023,96453.0,96441.0,0.004]
[1734855057352,0.023,96453.0,96440.0,0.0001714]
[1734855057845,0.023,96453.0,96441.0,0.005]
[1734855059013,0.023,96453.0,96440.0,0.0001714]
[1734855059433,0.023,96453.0,96441.0,0.005]
[1734855059698,0.023,96453.0,96440.0,0.0001714]
[1734855059925,0.023,96453.0,96441.0,0.003]
[1734855060162,0.023,96453.0,96440.0,0.0001714]
[1734855060616,0.023,96453.0,96440.0,0.0031714]
[1734855061095,0.023,96448.0,96440.0,0.0001714]
[1734855061311,0.207354,96454.0,96440.0,0.0001714]
[1734855061312,0.023,96444.0,96440.0,0.0001714]
[1734855062170,0.207376,96443.0,96440.0,0.0001714]
[1734855062379,0.023,96444.0,96441.0,0.004]
[1734855062592,0.207376,96443.0,96440.0,0.0001714]
[1734855062811,0.023,96442.0,96440.0,0.0001714]
[1734855063049,0.023,96442.0,96440.0,0.0031714]
[1734855063278,0.023,96442.0,96440.0,0.0001714]
[1734855063496,0.023,96444.0,96440.0,0.0001714]
[1734855063707,0.023,96442.0,96441.0,0.003]
[1734855063893,0.023,96442.0,96440.0,0.0001714]
[1734855064400,0.02306763,96446.0,96440.0,0.0031714]
[1734855064606,0.023,96442.0,96440.0,0.0031714]
[1734855064965,0.23038,96441.0,96440.0,0.0031714]
[1734855065547,0.23038,96441.0,96440.0,0.0001714]
[1734855065950,0.23038,96441.0,96440.0,0.0021714]
[1734855066149,0.23038,96441.0,96440.0,0.0001714]
[1734855066601,0.23038,96441.0,96440.0,0.0031714]
[1734855069308,0.23038,96441.0,96440.0,0.0001714]
[1734855069725,0.23038,96441.0,96440.0,0.0021714]
[1734855069944,0.23038,96441.0,96440.0,0.0001714]
[1734855070365,0.23038,96441.0,96440.0,0.0011714]
[1734855070570,0.23038,96441.0,96440.0,0.0001714]
[1734855072127,0.23038,96441.0,96440.0,0.0011714]
[1734855072560,0.20738,96441.0,96440.0,0.0001714]
[1734855072710,0.3316884,96441.0,96440.0,0.0001714]
[1734855074182,0.3806884,96441.0,96440.0,0.0001714]
[1734855074487,0.4806884,96441.0,96440.0,0.0001714]
[1734855075751,0.82349559,96441.0,96440.0,0.0001714]
[1734855075962,0.92349559,96441.0,96440.0,0.0001714]
[1734855077245,0.82349559,96441.0,96440.0,0.0001714]
[1734855077457,0.207421,96422.0,96421.0,0.0001714]
[1734855078308,0.34280719,96441.0,96422.0,0.0799]
[1734855078522,0.34280719,96441.0,96428.0,0.207406]
[1734855078724,0.34280719,96441.0,96429.0,0.0799]
[1734855079791,0.20738,96442.0,96429.0,0.0799]
[1734855080639,6.763e-05,96446.0,96440.0,0.0001714]
[1734855081707,6.763e-05,96446.0,96441.0,0.0799]
[1734855082326,0.20743863,96446.0,96441.0,0.0799]
[1734855083431,0.20743863,96446.0,96441.0,0.0809]
[1734855083909,0.41480963,96446.0,96441.0,0.0799]
[1734855084151,0.41480963,96446.0,96440.0,0.0001714]
[1734855085045,0.414748,96444.0,96440.0,0.0001714]
[1734855085279,0.207374,96444.0,96440.0,0.0001714]
[1734855085491,6.763e-05,96446.0,96440.0,0.0001714]
[1734855086539,0.207372,96445.0,96440.0,0.0001714]
[1734855089212,0.207372,96445.0,96440.0,0.0011714]
[1734855089419,0.207372,96445.0,96440.0,0.0001714]
[1734855089835,0.207372,96445.0,96440.0,0.0011714]
[1734855091038,0.414744,96445.0,96440.0,0.0011714]
[1734855091257,0.207372,96445.0,96440.0,0.0011714]
[1734855091992,0.207372,96445.0,96440.0,0.0001714]
[1734855092193,6.763e-05,96446.0,96440.0,0.0001714]
[1734855092899,8.57e-05,96445.0,96440.0,0.0001714]
[1734855093103,8.57e-05,96445.0,96440.0,0.0011714]
[1734855093561,8.57e-05,96445.0,96440.0,0.0001714]
[1734855093774,8.57e-05,96445.0,96440.0,0.0011714]
[1734855094019,0.207374,96444.0,96440.0,0.0011714]
[1734855094239,8.57e-05,96445.0,96440.0,0.0001714]
[1734855095558,0.414748,96444.0,96440.0,0.0011714]
[1734855096170,0.207374,96444.0,96440.0,0.0011714]
[1734855096795,0.207374,96444.0,96440.0,0.0001714]
[1734855097217,0.207374,96444.0,96440.0,0.0011714]
[1734855097218,0.414749,96444.0,96440.0,0.0011714]
[1734855097431,0.5160574,96444.0,96440.0,0.0011714]
[1734855097636,0.207378,96442.0,96440.0,0.0011714]
[1734855097860,0.1243084,96441.0,96440.0,0.0011714]
[1734855098939,0.1243084,96441.0,96440.0,0.0001714]
[1734855098940,0.14366289,96441.0,96440.0,0.0001714]
[1734855099175,0.14366289,96441.0,96440.0,0.0031714]
[1734855099455,0.14366289,96441.0,96440.0,0.0001714]
[1734855100651,0.23656573,96441.0,96440.0,0.0001714]
[1734855100851,0.11225733,96441.0,96440.0,0.0001714]
[1734855101236,0.11225733,96441.0,96440.0,0.0778714]
[1734855101426,0.11225733,96441.0,96440.0,0.1265714]
[1734855101661,0.09290284,96441.0,96440.0,0.1265714]
[1734855102320,8.57e-05,96445.0,96440.0,0.1265714]
[1734855102925,8.57e-05,96445.0,96440.0,0.1275714]
[1734855103494,8.57e-05,96445.0,96440.0,0.1265714]
[1734855103641,8.57e-05,96445.0,96440.0,0.1275714]
[1734855105003,8.57e-05,96445.0,96440.0,0.1265714]
[1734855110824,0.207374,96444.0,96440.0,0.1265714]
[1734855111046,8.57e-05,96445.0,96440.0,0.1265714]
[1734855114389,0.023,96443.0,96440.0,0.0001714]
[1734855114633,0.1013084,96442.0,96440.0,0.0001714]
[1734855114869,8.57e-05,96445.0,96440.0,0.0001714]
[1734855115102,8.57e-05,96445.0,96441.0,0.25398]
[1734855115359,0.13922121,96442.0,96441.0,0.0466]
[1734855116527,8.57e-05,96445.0,96441.0,0.0466]
[1734855116744,0.01938752,96442.0,96441.0,0.0466]
[1734855119945,0.01938752,96442.0,96441.0,0.1232]
[1734855120813,8.57e-05,96445.0,96441.0,0.1232]
[1734855121025,8.57e-05,96445.0,96442.0,0.207378]
[1734855121433,0.01939121,96444.0,96442.0,0.207378]
[1734855122080,0.01939121,96443.0,96442.0,0.207378]
[1734855126466,0.01939121,96443.0,96442.0,0.211378]
[1734855128685,8.57e-05,96445.0,96442.0,0.211378]
[1734855129212,8.57e-05,96444.0,96442.0,0.211378]
[1734855129827,8.57e-05,96444.0,96442.0,0.207378]
[1734855130022,8.57e-05,96444.0,96442.0,0.211378]
[1734855131447,8.57e-05,96444.0,96442.0,0.207378]
[1734855132022,8.57e-05,96444.0,96443.0,0.3289452]
[1734855132251,8.57e-05,96444.0,96443.0,0.3279084]
[1734855133091,8.57e-05,96444.0,96443.0,0.3745084]
[1734855133727,8.57e-05,96444.0,96443.0,0.3835084]
[1734855135425,6.763e-05,96446.0,96445.0,0.1]
[1734855135654,8.57e-05,96462.0,96458.0,0.1295]
[1734855135655,0.01935977,96460.0,96458.0,0.1295]
[1734855135877,8.57e-05,96462.0,96460.0,0.2795]
[1734855136135,0.0001401,96462.0,96461.0,0.54048184]
[1734855136360,0.0001401,96462.0,96461.0,0.5394454]
[1734855137138,0.0001401,96462.0,96461.0,0.2308]
[1734855138860,0.0001401,96462.0,96461.0,0.2338]
[1734855139074,0.0001401,96462.0,96461.0,0.2308]
[1734855139565,0.0001401,96462.0,96461.0,0.447137]
[1734855139819,0.0001401,96462.0,96461.0,0.2308]
[1734855140059,0.0001401,96462.0,96461.0,0.2398]
[1734855140316,0.0001401,96462.0,96461.0,0.2308]
[1734855141985,0.0001401,96462.0,96461.0,0.2398]
[1734855142191,0.0001401,96462.0,96461.0,0.2308]
[1734855143228,0.01949987,96462.0,96461.0,0.0808]
[1734855143472,0.01949987,96462.0,96461.0,0.0898]
[1734855143654,0.0001401,96462.0,96461.0,0.0898]
[1734855144242,0.01949987,96462.0,96461.0,0.19214501]
[1734855144708,0.0001401,96462.0,96461.0,0.19214501]
[1734855144915,0.0001401,96462.0,96461.0,0.1911084]
[1734855145335,0.0001401,96462.0,96461.0,0.0808]
[1734855145551,0.0001401,96462.0,96461.0,0.0898]
[1734855145960,0.01949987,96462.0,96461.0,0.0808]
[1734855146172,0.01949987,96462.0,96461.0,0.009]
[1734855146607,0.01949987,96462.0,96456.0,0.15]
[1734855146827,0.01949987,96462.0,96461.0,0.007]
[1734855147037,0.0001401,96462.0,96461.0,0.007]
[1734855147256,0.2074751,96462.0,96461.0,0.007]
[1734855147680,0.38205632,96462.0,96461.0,0.007]
[1734855148129,0.023,96461.0,96441.0,0.0001714]
[1734855148345,0.20736,96451.0,96441.0,0.0001714]
[1734855149187,0.05027282,96450.0,96441.0,0.0001714]
[1734855149602,0.05027282,96449.0,96441.0,0.0001714]
[1734855150036,0.05027282,96448.0,96441.0,0.0001714]
[1734855150679,0.05027282,96447.0,96441.0,0.0001714]
[1734855151515,0.05027282,96447.0,96446.0,0.0051714]
[1734855151759,0.05027282,96447.0,96446.0,0.0826714]
[1734855152176,0.0193357,96447.0,96446.0,0.0886714]
[1734855152594,0.30008751,96457.0,96446.0,0.0886714]
[1734855152800,0.01933178,96447.0,96446.0,0.0886714]
[1734855155610,0.01933178,96447.0,96446.0,0.0061714]
[1734855163565,0.01941748,96447.0,96446.0,0.0061714]
[1734855163769,0.14372588,96447.0,96446.0,0.0061714]
[1734855164264,0.17465278,96447.0,96446.0,0.0061714]
[1734855164961,0.28294709,96447.0,96446.0,0.0061714]
[1734855165176,0.28294709,96447.0,96446.0,0.0001714]
[1734855166061,0.14372588,96447.0,96446.0,0.0001714]
[1734855171915,0.28294709,96447.0,96446.0,0.0001714]
[1734855173164,0.26361531,96447.0,96446.0,0.0001714]
[1734855173370,0.28295878,96447.0,96446.0,0.0001714]
[1734855173572,0.2935352,96447.0,96446.0,0.0001714]
[1734855175201,0.2935352,96447.0,96441.0,0.0001714]
[1734855175202,0.437738,96446.0,96441.0,0.0001714]
[1734855175550,0.023,96443.0,96441.0,0.0001714]
[1734855175799,0.3316864,96442.0,96441.0,0.0001714]
[1734855176264,0.35102987,96442.0,96441.0,0.0001714]
[1734855176888,0.35102987,96442.0,96441.0,0.0011714]
[1734855178066,0.35102987,96442.0,96441.0,0.0001714]
[1734855178261,0.44373554,96442.0,96441.0,0.0001714]
[1734855179683,0.35102987,96442.0,96441.0,0.0001714]
[1734855185689,0.45102987,96442.0,96441.0,0.0001714]
[1734855185892,0.52622987,96442.0,96441.0,0.0001714]
[1734855186262,0.67552987,96442.0,96441.0,0.0001714]
[1734855187112,0.81458838,96442.0,96441.0,0.0001714]
[1734855187538,0.207421,96422.0,96421.0,0.0001714]
[1734855188208,0.25773666,96422.0,96421.0,0.0001714]
[1734855188692,0.25779102,96422.0,96421.0,0.0001714]
[1734855189124,0.25779102,96422.0,96421.0,0.0021714]
[1734855191133,0.22681883,96422.0,96421.0,0.0021714]
[1734855193154,0.31962809,96422.0,96421.0,0.0021714]
[1734855194062,0.22681883,96422.0,96421.0,0.0021714]
[1734855196737,0.22681883,96422.0,96421.0,0.0031714]
[1734855196958,0.35112723,96422.0,96421.0,0.0031714]
[1734855198068,0.35112723,96422.0,96421.0,0.0021714]
[1734855198486,0.69356715,96422.0,96421.0,0.0021714]
[1734855198689,0.69356715,96422.0,96421.0,0.0001714]
[1734855199114,0.89356715,96422.0,96421.0,0.0001714]
[1734855199947,1.12547839,96422.0,96421.0,0.0001714]
[1734855200150,1.12547839,96422.0,96402.0,0.0001714]
[1734855200151,0.1,96417.0,96402.0,0.0001714]
[1734855200364,0.230462,96403.0,96402.0,0.0001714]
[1734855200795,0.01934347,96403.0,96402.0,0.0001714]
[1734855201017,0.01934347,96403.0,96402.0,0.0753714]
[1734855201675,0.01934347,96403.0,96402.0,0.0763714]
[1734855202107,0.01934347,96403.0,96402.0,0.0833714]
[1734855202318,0.01934347,96403.0,96402.0,0.1366714]
[1734855202945,0.01934347,96403.0,96402.0,0.1326714]
[1734855203384,0.01934347,96403.0,96402.0,0.1246714]
[1734855203600,0.01934347,96403.0,96402.0,0.1306714]
[1734855205098,0.01934347,96403.0,96402.0,0.1336714]
[1734855209770,0.01934347,96403.0,96402.0,0.0091714]
[1734855211006,0.207459,96405.0,96402.0,0.0091714]
[1734855211447,0.207462,96403.0,96402.0,0.0091714]
[1734855211832,0.207462,96403.0,96402.0,0.0061714]
[1734855212163,0.207462,96403.0,96402.0,0.0081714]
[1734855212717,0.207462,96403.0,96402.0,0.0061714]
[1734855212960,0.3317704,96403.0,96402.0,0.0061714]
[1734855213175,0.3317704,96403.0,96402.0,0.0091714]
[1734855213887,0.35112443,96403.0,96402.0,0.0091714]
[1734855214392,0.35112443,96403.0,96402.0,0.0061714]
[1734855215315,0.44386076,96403.0,96402.0,0.0001714]
[1734855215951,0.42450673,96403.0,96402.0,0.0001714]
[1734855216845,0.44386606,96403.0,96402.0,0.0001714]
[1734855218149,0.31955766,96403.0,96402.0,0.0001714]
[1734855218351,0.31955766,96403.0,96402.0,0.0820714]
[1734855219008,0.22682133,96403.0,96402.0,0.0820714]
[1734855219214,0.22682133,96403.0,96402.0,0.0001714]
[1734855227379,0.31955766,96403.0,96402.0,0.0001714]
[1734855228042,0.44386606,96403.0,96402.0,0.0001714]
[1734855228447,0.35112973,96403.0,96402.0,0.0001714]
[1734855229912,0.69387056,96403.0,96402.0,0.0001714]
[1734855231086,0.35112973,96403.0,96402.0,0.0001714]
[1734855232031,0.53660239,96403.0,96402.0,0.0001714]
[1734855232352,0.41229399,96403.0,96402.0,0.0001714]
[1734855233159,0.75524584,96403.0,96402.0,0.0001714]
[1734855234325,0.56977318,96403.0,96402.0,0.0001714]
[1734855238139,0.36231118,96403.0,96402.0,0.0001714]
[1734855240426,0.36231118,96403.0,96402.0,0.0826714]
[1734855240617,0.36231118,96403.0,96402.0,0.2311798]
[1734855241070,0.34295185,96403.0,96402.0,0.3811798]
[1734855241272,0.34295185,96403.0,96402.0,0.39157975]
[1734855242335,0.09309556,96421.0,96402.0,0.1298714]
[1734855242545,0.09309556,96421.0,96402.0,0.1378714]
[1734855242757,0.09309556,96421.0,96408.0,0.20745]
[1734855243172,0.09309556,96421.0,96414.0,0.207437]
[1734855243421,8.57e-05,96421.0,96414.0,0.207437]
[1734855243638,8.57e-05,96421.0,96416.0,0.207434]
[1734855244491,8.57e-05,96421.0,96416.0,0.0472]
[1734855244705,8.57e-05,96421.0,96417.0,0.0825]
[1734855245560,8.57e-05,96421.0,96417.0,0.28993]
[1734855246014,8.57e-05,96421.0,96419.0,0.207427]
[1734855248073,8.57e-05,96421.0,96420.0,0.0825]
[1734855250018,8.57e-05,96421.0,96416.0,0.0472]
[1734855253120,8.57e-05,96421.0,96413.0,0.0825]
[1734855253526,0.207425,96420.0,96413.0,0.0825]
[1734855253957,8.57e-05,96421.0,96413.0,0.0825]
[1734855254130,0.0010857,96421.0,96413.0,0.0825]
[1734855254543,0.0010857,96421.0,96413.0,0.28994]
[1734855254737,8.57e-05,96421.0,96413.0,0.28994]
[1734855256217,0.001,96420.0,96413.0,0.28994]
[1734855256704,8.57e-05,96421.0,96413.0,0.28994]
[1734855257144,0.0010857,96421.0,96413.0,0.28994]
[1734855257967,0.0010857,96421.0,96418.0,0.207428]
[1734855258183,0.0010857,96421.0,96419.0,0.0819]
[1734855258450,0.0010857,96421.0,96420.0,0.338225]
[1734855259256,8.57e-05,96421.0,96420.0,0.338225]
[1734855260716,8.57e-05,96421.0,96420.0,0.341225]
[1734855261353,8.57e-05,96421.0,96420.0,0.347225]
[1734855262420,8.57e-05,96421.0,96420.0,0.344225]
[1734855262630,8.57e-05,96421.0,96420.0,0.340225]
[1734855263987,8.57e-05,96421.0,96420.0,0.341225]
[1734855264192,8.57e-05,96421.0,96420.0,0.338225]
[1734855264424,8.57e-05,96421.0,96420.0,0.5985334]
[1734855265297,8.57e-05,96421.0,96420.0,0.5925334]
[1734855265518,8.57e-05,96421.0,96420.0,0.6015334]
[1734855265737,8.57e-05,96421.0,96420.0,0.5985334]
[1734855265948,8.57e-05,96421.0,96420.0,0.6015334]
[1734855266365,8.57e-05,96421.0,96420.0,0.5985334]
[1734855266805,0.0010857,96421.0,96420.0,0.6045334]
[1734855274845,0.0010857,96421.0,96420.0,0.503225]
[1734855278572,0.0010857,96421.0,96420.0,0.353225]
[1734855279291,0.0010857,96421.0,96420.0,0.015]
[1734855279493,0.02042606,96421.0,96420.0,0.015]
[1734855280543,0.02042606,96421.0,96420.0,0.006]
[1734855280755,0.02042606,96421.0,96420.0,0.012]
[1734855281231,0.02042606,96421.0,96420.0,0.006]
[1734855281445,0.01942606,96421.0,96420.0,0.0091714]
[1734855281658,0.01942606,96421.0,96420.0,0.0051714]
[1734855282088,0.01942606,96421.0,96420.0,0.0041714]
[1734855282305,0.01942606,96421.0,96420.0,0.0001714]
[1734855282506,0.01942606,96421.0,96420.0,0.0021714]
[1734855283784,0.01942606,96421.0,96420.0,0.0061714]
[1734855283991,0.01942606,96421.0,96420.0,0.0021714]
[1734855284372,0.01942606,96421.0,96420.0,0.0041714]
[1734855284615,0.01942606,96421.0,96420.0,0.0001714]
[1734855284825,0.01942606,96421.0,96420.0,0.0021714]
[1734855285026,0.01942606,96421.0,96420.0,0.0061714]
[1734855285443,0.01942606,96421.0,96420.0,0.0041714]
[1734855285658,0.01942606,96421.0,96420.0,0.0061714]
[1734855287512,0.01942606,96421.0,96420.0,0.0041714]
[1734855287871,0.01942606,96421.0,96420.0,0.0051714]
[1734855288294,0.01942606,96421.0,96420.0,0.0001714]
[1734855288742,0.01942606,96421.0,96420.0,0.0041714]
[1734855289174,0.01942606,96421.0,96420.0,0.0031714]
[1734855289505,0.01942606,96421.0,96420.0,0.0041714]
[1734855289941,0.01942606,96421.0,96420.0,0.0011714]
[1734855290134,0.01942606,96421.0,96420.0,0.0021714]
[1734855290339,0.01942606,96421.0,96420.0,0.2332798]
[1734855290578,0.01942606,96421.0,96420.0,0.3832798]
[1734855290752,8.57e-05,96421.0,96420.0,0.3822798]
[1734855290962,8.57e-05,96421.0,96420.0,0.3812798]
[1734855291181,8.57e-05,96421.0,96420.0,0.39281772]
[1734855291388,8.57e-05,96421.0,96420.0,0.39381772]
[1734855291629,8.57e-05,96421.0,96420.0,0.39181772]
[1734855292047,8.57e-05,96421.0,96420.0,0.39581772]
[1734855293107,8.57e-05,96421.0,96420.0,0.40381772]
[1734855293317,8.57e-05,96421.0,96420.0,0.39581772]
[1734855293744,8.57e-05,96421.0,96420.0,0.40481772]
[1734855294135,8.57e-05,96421.0,96420.0,0.40081772]
[1734855294512,8.57e-05,96421.0,96420.0,0.49681772]
[1734855294712,6e-08,96422.0,96421.0,0.686223]
[1734855295033,0.01934036,96454.0,96436.0,0.1964]
[1734855295236,0.00014009,96441.0,96438.0,0.0824]
[1734855295397,0.00014009,96441.0,96440.0,0.15]
[1734855295598,0.00014009,96441.0,96440.0,0.3337084]
[1734855297324,0.00014009,96441.0,96440.0,0.3427084]
[1734855297750,0.00014009,96441.0,96440.0,0.3891084]
[1734855297953,0.00014009,96441.0,96440.0,0.3941084]
[1734855302783,8.57e-05,96485.0,96440.0,0.3941084]
[1734855302784,4.9e-07,96447.0,96446.0,0.25]
[1734855302983,0.01934036,96482.0,96461.0,0.486137]
[1734855303184,0.01934036,96482.0,96461.0,0.5874454]
[1734855303389,8.57e-05,96485.0,96461.0,0.5874454]
[1734855304770,8.57e-05,96485.0,96461.0,0.59795347]
[1734855305001,8.57e-05,96485.0,96461.0,0.60395347]
[1734855305186,8.57e-05,96485.0,96461.0,0.61295347]
[1734855313683,0.0794,96484.0,96461.0,0.61295347]
[1734855313925,0.0794,96484.0,96461.0,0.38284507]
[1734855314332,0.0794,96484.0,96461.0,0.372337]
[1734855316010,0.0794,96484.0,96461.0,0.366337]
[1734855316210,0.0794,96484.0,96461.0,0.369337]
[1734855316484,0.0794,96484.0,96461.0,0.360337]
[1734855316958,0.0794,96484.0,96461.0,0.365337]
[1734855317179,0.0794,96484.0,96461.0,0.357337]
[1734855317408,0.0794,96484.0,96461.0,0.360337]
[1734855317625,0.0794,96484.0,96461.0,0.368337]
[1734855317839,0.0794,96484.0,96461.0,0.360337]
[1734855318088,0.0794,96484.0,96461.0,0.365337]
[1734855318779,0.0794,96484.0,96461.0,0.357337]
[1734855319075,8.57e-05,96485.0,96461.0,0.5380454]
[1734855320012,8.57e-05,96485.0,96461.0,0.5410454]
[1734855320505,8.57e-05,96485.0,96461.0,0.5460454]
[1734855320733,8.57e-05,96485.0,96461.0,0.5420454]
[1734855320962,8.57e-05,96485.0,96461.0,0.5510454]
[1734855321210,8.57e-05,96485.0,96461.0,0.5380454]
[1734855321458,8.57e-05,96485.0,96461.0,0.5830454]
[1734855321720,8.57e-05,96485.0,96461.0,0.5970454]
[1734855321946,8.57e-05,96485.0,96461.0,0.5880454]
[1734855322178,7e-07,96462.0,96461.0,0.5880454]
[1734855322424,4e-07,96466.0,96462.0,0.357333]
[1734855322664,4e-07,96466.0,96465.0,0.15]
[1734855322895,4e-07,96466.0,96465.0,0.33174471]
[1734855323149,4e-07,96466.0,96465.0,0.3307084]
[1734855324322,4e-07,96466.0,96465.0,0.87011265]
[1734855324550,4e-07,96466.0,96465.0,0.87111265]
[1734855324814,4e-07,96466.0,96465.0,0.87011265]
[1734855325058,4e-07,96466.0,96465.0,0.87511265]
[1734855325305,4e-07,96466.0,96465.0,0.87311265]
[1734855326014,4e-07,96466.0,96465.0,0.88111265]
[1734855326746,4e-07,96466.0,96465.0,0.87811265]
[1734855326958,4e-07,96466.0,96465.0,0.87311265]
[1734855327217,4e-07,96466.0,96465.0,0.3397084]
[1734855327664,4e-07,96466.0,96465.0,0.3307084]
[1734855327894,0.0040004,96466.0,96465.0,0.3307084]
[1734855333478,0.0040004,96466.0,96465.0,0.2513084]
[1734855334897,0.02338995,96466.0,96465.0,0.2513084]
[1734855337679,0.02338995,96466.0,96465.0,0.1013084]
[1734855337893,0.02338995,96466.0,96464.0,0.207331]
[1734855337894,0.0782,96465.0,96464.0,0.207331]
[1734855338568,0.0782,96465.0,96459.0,0.207339]
[1734855339421,0.0782,96465.0,96459.0,0.41468]
[1734855340051,0.0782,96465.0,96464.0,0.009]
[1734855340261,0.0782,96465.0,96459.0,0.41468]
[1734855340704,0.0782,96465.0,96459.0,0.42768]
[1734855340967,0.0782,96465.0,96459.0,0.41868]
[1734855341180,0.0782,96465.0,96464.0,0.009]
[1734855341591,0.0782,96465.0,96459.0,0.41768]
[1734855342859,0.0782,96465.0,96459.0,0.42168]
[1734855343283,0.0782,96465.0,96464.0,0.002]
[1734855343689,0.0782,96465.0,96459.0,0.42168]
[1734855343898,0.0782,96465.0,96459.0,0.42368]
[1734855344097,0.0782,96465.0,96459.0,0.41668]
[1734855344511,0.0782,96465.0,96464.0,0.007]
[1734855344730,0.0782,96465.0,96459.0,0.41468]
[1734855345353,4e-07,96466.0,96464.0,0.002]
[1734855345524,4e-07,96466.0,96465.0,0.207329]
[1734855346607,4e-07,96466.0,96459.0,0.207339]
[1734855347029,4e-07,96466.0,96465.0,0.004]
[1734855347658,4e-07,96466.0,96459.0,0.207339]
[1734855348096,4e-07,96466.0,96465.0,0.001]
[1734855348519,4e-07,96466.0,96459.0,0.211339]
[1734855348907,4e-07,96466.0,96459.0,0.41868]
[1734855349318,4e-07,96466.0,96459.0,0.41468]
[1734855349624,4e-07,96466.0,96465.0,0.004]
[1734855349826,4e-07,96466.0,96459.0,0.41568]
[1734855350229,4e-07,96466.0,96459.0,0.41968]
[1734855350625,4e-07,96466.0,96459.0,0.41468]
[1734855350815,4e-07,96466.0,96465.0,0.001]
[1734855351021,4e-07,96466.0,96465.0,0.005]
[1734855351287,4e-07,96466.0,96459.0,0.41468]
[1734855351851,4e-07,96466.0,96452.0,0.207356]
[1734855352231,0.1013084,96465.0,96459.0,0.001]
[1734855352428,0.0782,96462.0,96459.0,0.001]
[1734855352629,0.1012,96460.0,96459.0,0.001]
[1734855352836,0.2025084,96460.0,96459.0,0.004]
[1734855353036,0.2025084,96460.0,96459.0,0.001]
[1734855353524,0.2025084,96460.0,96459.0,0.003]
[1734855353725,0.2025084,96460.0,96459.0,0.0001712]
[1734855353927,0.4098474,96460.0,96459.0,0.0001712]
[1734855354113,0.4098474,96460.0,96459.0,0.0041712]
[1734855354461,0.93856837,96460.0,96459.0,0.0041712]
[1734855354888,0.93856837,96460.0,96459.0,0.0051712]
[1734855355505,1.03856837,96460.0,96459.0,0.0041712]
[1734855355732,1.08486837,96460.0,96459.0,0.0001712]
[1734855355919,0.5561474,96460.0,96459.0,0.0001712]
[1734855356141,0.8101474,96460.0,96459.0,0.0001712]
[1734855356983,0.8141474,96460.0,96459.0,0.0001712]
[1734855357418,0.207365,96448.0,96447.0,0.0001712]
[1734855357576,0.4112734,96448.0,96447.0,0.0001712]
[1734855358580,0.4122734,96448.0,96447.0,0.0001712]
[1734855358784,0.001,96448.0,96447.0,0.0001712]
[1734855360704,0.173,96456.0,96447.0,0.0001712]
[1734855360958,0.023,96454.0,96447.0,0.0001712]
[1734855361199,0.001,96448.0,96447.0,0.0001712]
[1734855361831,0.023,96452.0,96447.0,0.0001712]
[1734855362057,0.1013084,96452.0,96447.0,0.0001712]
[1734855362684,0.153,96456.0,96447.0,0.0001712]
[1734855362894,0.007,96456.0,96447.0,0.0001712]
[1734855363093,0.003,96456.0,96447.0,0.0001712]
[1734855363502,0.002,96452.0,96447.0,0.0001712]
[1734855363723,0.003,96456.0,96447.0,0.0001712]
[1734855363965,0.007,96456.0,96447.0,0.0001712]
[1734855364177,0.1243084,96455.0,96447.0,0.0001712]
[1734855364811,0.023,96450.0,96447.0,0.0001712]
[1734855365013,0.1013084,96449.0,96447.0,0.0001712]
[1734855366542,0.1033084,96449.0,96447.0,0.0001712]
[1734855367934,0.286065,96448.0,96447.0,0.0001712]
[1734855368332,0.4103734,96448.0,96447.0,0.0001712]